bitfinex-derivatives/quotes_SOLF0:USTF0_20260220
["timestamp","ask_amount","ask_price","bid_price","bid_amount"]
[1771578412886,9.09046916,84.27,84.201,1.37579956]
[1771578413286,9.09046916,84.27,84.223,10.6917]
[1771578414171,10.6863,84.267,84.209,10.6935]
[1771578415080,6.47639994,84.266,84.209,10.6935]
[1771578415283,6.47639994,84.263,84.209,10.6935]
[1771578415878,6.47639994,84.258,84.198,10.6948]
[1771578416174,6.47639994,84.258,84.18,9.09046916]
[1771578416175,6.47639994,84.258,84.201,1.55352418]
[1771578416383,6.47639994,84.258,84.211,10.6933]
[1771578416981,6.47639994,84.274,84.216,1.5863122]
[1771578417683,6.47639994,84.272,84.21,10.6933]
[1771578417886,6.47639994,84.272,84.201,1.61648744]
[1771578418084,9.09046916,84.3,84.182,32.26386269]
[1771578418085,6.47639994,84.287,84.234,10.6902]
[1771578418779,6.47639994,84.279,84.221,12.26813322]
[1771578419291,6.47639994,84.276,84.221,1.57623322]
[1771578419580,6.47639994,84.276,84.203,1.63784456]
[1771578420282,6.47639994,84.256,84.205,10.694]
[1771578420783,6.47639994,84.256,84.188,1.57074882]
[1771578421087,6.47639994,84.235,84.171,1.57274189]
[1771578422785,6.72785792,84.232,84.175,10.6978]
[1771578424487,6.72785792,84.232,84.176,0.88217011]
[1771578424990,6.60684602,84.248,84.191,0.9101607]
[1771578426184,6.60292974,84.264,84.212,10.6931]
[1771578426388,6.60292974,84.264,84.155,21.4007]
[1771578426389,6.60292974,84.281,84.213,0.9452115]
[1771578427689,11.02862005,84.313,84.213,0.9452115]
[1771578427690,6.84369107,84.277,84.221,10.692]
[1771578428591,6.84369107,84.273,84.213,11.6382115]
[1771578429388,6.84369107,84.258,84.205,10.694]
[1771578429687,6.84369107,84.258,84.197,1.13459217]
[1771578429887,9.0665416,84.3,84.197,1.13459217]
[1771578429888,6.84369107,84.256,84.197,1.13459217]
[1771578430592,6.84369107,84.249,84.198,10.6949]
[1771578430891,6.84369107,84.249,84.18,10.22607107]
[1771578431285,6.84369107,84.244,84.186,10.6964]
[1771578431592,6.84369107,84.239,84.168,254.77462104]
[1771578431987,6.84369107,84.239,84.168,255.98966922]
[1771578432390,6.84369107,84.227,84.17,10.6984]
[1771578432589,6.84369107,84.227,84.168,255.98966922]
[1771578432991,6.84369107,84.227,84.169,1.24050999]
[1771578433385,6.84369107,84.227,84.177,10.6975]
[1771578434391,6.84369107,84.227,84.169,1.24050999]
[1771578434591,6.84369107,84.22,84.168,254.77462104]
[1771578434794,6.84369107,84.219,84.168,254.77462104]
[1771578434999,10.6953,84.196,84.168,154.86842289]
[1771578436694,9.0665416,84.25,84.168,154.86842289]
[1771578436695,10.6897,84.239,84.172,33.89619398]
[1771578437696,10.6897,84.239,84.176,33.89700042]
[1771578439588,9.0665416,84.24,84.176,33.89700042]
[1771578440690,10.6922,84.22,84.176,33.89700042]
[1771578441102,9.0665416,84.24,84.176,33.89700042]
[1771578441306,9.0665416,84.24,84.168,154.86842289]
[1771578441307,9.0665416,84.24,84.178,34.24202873]
[1771578442201,10.6917,84.224,84.178,34.24202873]
[1771578442402,9.0665416,84.24,84.168,154.86842289]
[1771578443001,10.6915,84.226,84.169,34.34109951]
[1771578443196,9.0665416,84.24,84.169,34.34109951]
[1771578444703,10.6902,84.236,84.171,34.38887489]
[1771578445198,9.0665416,84.25,84.193,34.39209852]
[1771578445391,9.0665416,84.27,84.193,34.39209852]
[1771578445904,10.6873,84.259,84.195,34.56789505]
[1771578448003,10.6873,84.259,84.197,34.5511206]
[1771578448499,10.6873,84.259,84.199,34.5511206]
[1771578450205,10.6886,84.248,84.177,34.59862612]
[1771578450507,2.0661157,84.291,84.177,34.59862612]
[1771578450508,9.0665416,84.25,84.177,34.59862612]
[1771578451307,10.6899,84.238,84.179,34.60252181]
[1771578451804,9.0665416,84.25,84.179,34.60252181]
[1771578452099,9.0665416,84.23,84.179,34.60252181]
[1771578452504,10.6913,84.227,84.179,34.60252181]
[1771578453004,9.0665416,84.23,84.179,34.60252181]
[1771578453303,9.0665416,84.23,84.168,154.86842289]
[1771578453503,10.6923,84.219,84.168,154.86842289]
[1771578454106,9.0665416,84.24,84.169,34.61342973]
[1771578454604,10.6907,84.231,84.169,34.61342973]
[1771578455304,11.05807393,84.26,84.168,154.86842289]
[1771578455305,9.0665416,84.26,84.171,34.61713799]
[1771578455795,10.6884,84.25,84.193,34.61713799]
[1771578458605,10.6896,84.241,84.193,34.61713799]
[1771578461704,9.0665416,84.28,84.195,34.84927861]
[1771578461904,9.0665416,84.28,84.198,34.9128635]
[1771578463712,10.687,84.261,84.207,34.91721595]
[1771578464713,10.6882,84.251,84.207,34.91721595]
[1771578465303,10.6898,84.239,84.207,34.91721595]
[1771578466105,9.0665416,84.28,84.207,34.91721595]
[1771578467820,10.6877,84.255,84.207,34.91721595]
[1771578468319,10.6886,84.248,84.207,34.91721595]
[1771578469421,10.6873,84.259,84.207,34.91721595]
[1771578469719,9.0665416,84.28,84.207,34.91721595]
[1771578469913,3.04441692,84.26,84.21,37.93790034]
[1771578470824,10.6881,84.252,84.21,37.93790034]
[1771578472114,11.05807393,84.288,84.21,37.93790034]
[1771578472115,10.6868,84.263,84.22,3.04441692]
[1771578472314,3.04441692,84.25,84.2,3.04441692]
[1771578472615,3.04441692,84.25,84.201,34.90342948]
[1771578472924,3.04441692,84.26,84.201,34.90342948]
[1771578473326,11.05807393,84.282,84.201,34.90342948]
[1771578473525,3.04441692,84.25,84.201,34.90342948]
[1771578473726,10.6886,84.248,84.201,34.90342948]
[1771578474227,3.04441692,84.26,84.211,34.87471231]
[1771578475229,10.6885,84.249,84.211,34.87471231]
[1771578476333,10.6862,84.267,84.213,34.87584034]
[1771578476629,10.6862,84.267,84.221,34.87584034]
[1771578477929,3.04441692,84.26,84.201,34.88545568]
[1771578478125,3.04441692,84.25,84.201,34.88545568]
[1771578479029,3.04441692,84.24,84.201,34.88545568]
[1771578479827,10.6912,84.228,84.201,34.88545568]
[1771578482437,10.6912,84.228,84.173,34.67874306]
[1771578482736,10.6925,84.218,84.173,34.67874306]
[1771578485436,9.06532433,84.25,84.168,154.86842289]
[1771578485437,9.06532433,84.23,84.168,154.86842289]
[1771578485834,10.6953,84.195,84.168,154.86842289]
[1771578486232,10.6953,84.195,84.168,134.28672289]
[1771578486534,9.06532433,84.21,84.168,134.28672289]
[1771578486535,10.6964,84.187,84.168,32.71782289]
[1771578486837,10.6964,84.187,84.168,2.289e-05]
[1771578487238,10.6953,84.196,84.168,2.289e-05]
[1771578487734,10.695,84.198,84.168,2.289e-05]
[1771578487941,9.06532433,84.22,84.168,2.289e-05]
[1771578488245,9.06532433,84.23,84.168,25.6727102]
[1771578488938,10.6938,84.207,84.168,25.6727102]
[1771578490337,9.06532433,84.23,84.168,25.6727102]
[1771578491344,9.06532433,84.24,84.168,25.6727102]
[1771578492145,9.06532433,84.24,84.172,25.73793169]
[1771578492643,10.6905,84.234,84.172,25.73793169]
[1771578492844,10.6905,84.234,84.174,25.73793169]
[1771578495339,10.6915,84.225,84.174,25.73793169]
[1771578496848,10.6926,84.217,84.174,25.73793169]
[1771578498544,10.6938,84.208,84.174,25.73793169]
[1771578500940,30.44222433,84.25,84.168,2.289e-05]
[1771578500941,10.695,84.198,84.168,2.289e-05]
[1771578501139,9.06532433,84.22,84.168,2.289e-05]
[1771578501748,10.6948,84.199,84.168,2.289e-05]
[1771578504852,10.6939,84.207,84.168,2.289e-05]
[1771578505053,3.04807045,84.21,84.168,2.289e-05]
[1771578505652,3.04807045,84.22,84.168,2.289e-05]
[1771578505848,21.3769,84.25,84.171,16.16482071]
[1771578506049,3.04807045,84.23,84.181,16.16482071]
[1771578506354,10.6932,84.212,84.181,16.16482071]
[1771578508747,10.6941,84.205,84.168,2.289e-05]
[1771578508951,3.04807045,84.22,84.168,2.289e-05]
[1771578509654,3.04807045,84.21,84.168,2.289e-05]
[1771578509848,10.6936,84.209,84.168,2.289e-05]
[1771578512350,10.69,84.237,84.181,16.20285988]
[1771578514554,10.69,84.237,84.191,16.19468478]
[1771578516356,3.04807045,84.23,84.18,16.19132204]
[1771578516557,3.04807045,84.22,84.168,2.289e-05]
[1771578516952,10.6913,84.227,84.171,16.19372461]
[1771578520659,43.48734786,84.272,84.171,16.19372461]
[1771578520660,10.6933,84.211,84.171,16.19372461]
[1771578520959,3.04807045,84.22,84.171,16.19372461]
[1771578521759,10.6924,84.219,84.171,16.19372461]
[1771578521958,3.04807045,84.23,84.171,16.19372461]
[1771578522351,10.692,84.222,84.171,16.19372461]
[1771578522857,10.692,84.222,84.168,2.289e-05]
[1771578522858,10.692,84.222,84.181,16.23690012]
[1771578525263,10.6929,84.215,84.181,16.23690012]
[1771578526358,10.6929,84.215,84.168,2.289e-05]
[1771578526760,10.6937,84.208,84.168,2.289e-05]
[1771578527560,13.74147045,84.21,84.168,2.289e-05]
[1771578527963,3.04807045,84.21,84.168,2.289e-05]
[1771578528376,10.6945,84.202,84.162,16.21522466]
[1771578529672,10.6934,84.211,84.162,16.21522466]
[1771578530270,10.6942,84.204,84.162,16.21522466]
[1771578530462,3.04807045,84.22,84.162,16.21522466]
[1771578530867,10.6933,84.212,84.162,16.21522466]
[1771578533074,3.04807045,84.22,84.162,16.21522466]
[1771578534176,11.06692649,84.232,84.164,16.11828369]
[1771578534372,3.04807045,84.22,84.164,16.11828369]
[1771578534778,3.04807045,84.22,84.167,16.11997557]
[1771578534978,3.04807045,84.22,84.171,16.11997557]
[1771578535175,3.04807045,84.24,84.181,16.11997557]
[1771578535573,3.04807045,84.23,84.181,16.11997557]
[1771578535879,3.04807045,84.22,84.181,16.11997557]
[1771578536580,3.04807045,84.21,84.168,250.89392162]
[1771578537178,3.04807045,84.21,84.169,16.11759852]
[1771578537380,11.10177088,84.232,84.169,16.11759852]
[1771578537574,3.04807045,84.22,84.169,16.11759852]
[1771578538773,3.04807045,84.22,84.17,10.6984]
[1771578538976,3.04807045,84.22,84.171,16.07242852]
[1771578543187,22.11614786,84.258,84.171,16.07242852]
[1771578543188,3.04807045,84.23,84.171,16.07242852]
[1771578543388,3.04807045,84.22,84.171,16.07242852]
[1771578543890,3.04737414,84.22,84.171,16.07242852]
[1771578544789,3.04737414,84.23,84.171,16.07242852]
[1771578546085,3.04737414,84.22,84.171,16.07242852]
[1771578546792,3.04737414,84.21,84.171,16.07242852]
[1771578546988,10.6925,84.218,84.171,16.07242852]
[1771578547190,3.04737414,84.22,84.171,16.07242852]
[1771578548091,21.3699,84.277,84.168,250.89392162]
[1771578548092,3.04737414,84.2,84.168,250.89392162]
[1771578549189,11.10177088,84.225,84.169,16.06640951]
[1771578549388,29.48819715,84.271,84.169,16.06640951]
[1771578549389,3.04737414,84.22,84.169,16.06640951]
[1771578549589,3.04737414,84.2,84.169,16.06640951]
[1771578549787,3.04737414,84.2,84.168,250.89392162]
[1771578549982,3.04737414,84.21,84.168,266.87802452]
[1771578551283,3.04737414,84.21,84.169,15.98520465]
[1771578552495,10.6936,84.209,84.169,15.98520465]
[1771578553195,3.04737414,84.2,84.169,15.98520465]
[1771578553694,10.6936,84.209,84.169,15.98520465]
[1771578554488,3.04737414,84.21,84.169,15.98520465]
[1771578554693,10.6949,84.198,84.169,15.98520465]
[1771578555494,10.6949,84.198,84.168,250.89392162]
[1771578555994,3.04737414,84.19,84.168,209.06252162]
[1771578556190,3.04737414,84.19,84.168,127.87752162]
[1771578556386,3.04737414,84.19,84.168,58.17262162]
[1771578556587,10.6964,84.187,84.168,2.162e-05]
[1771578556793,3.04737414,84.18,84.144,15.9908088]
[1771578557695,3.04737414,84.18,84.121,15.99184095]
[1771578558091,3.04737414,84.17,84.121,15.99184095]
[1771578558498,10.6974,84.179,84.121,15.99184095]
[1771578558901,10.6974,84.179,84.131,16.24182391]
[1771578559403,10.6985,84.171,84.131,16.24182391]
[1771578560196,13.74457414,84.18,84.131,16.24182391]
[1771578560391,3.04737414,84.2,84.151,16.41187248]
[1771578560596,3.04737414,84.21,84.161,16.41187248]
[1771578561689,10.6952,84.197,84.161,16.41187248]
[1771578561892,3.04737414,84.21,84.161,16.41187248]
[1771578563804,10.6941,84.205,84.161,16.41187248]
[1771578564306,10.695,84.198,84.161,16.41187248]
[1771578564806,3.04737414,84.2,84.161,16.41187248]
[1771578565005,10.6944,84.203,84.161,16.41187248]
[1771578567601,3.04737414,84.2,84.161,16.41187248]
[1771578569405,10.6949,84.199,84.161,16.41187248]
[1771578571803,11.10177088,84.222,84.161,16.41187248]
[1771578571804,10.6938,84.208,84.161,16.41187248]
[1771578572005,10.6938,84.208,84.171,16.23720796]
[1771578574407,3.04737414,84.21,84.171,16.23720796]
[1771578574408,3.04737414,84.22,84.171,16.23720796]
[1771578574604,3.04737414,84.23,84.181,16.1959418]
[1771578575710,10.6915,84.225,84.181,16.1959418]
[1771578579417,3.04737414,84.23,84.181,16.1959418]
[1771578581316,10.6912,84.228,84.181,16.1959418]
[1771578582819,3.04737414,84.22,84.181,16.1959418]
[1771578583823,3.04737414,84.19,84.134,10.91939464]
[1771578584019,3.04737414,84.2,84.15,3.04737414]
[1771578584318,3.04737414,84.2,84.154,10.7005]
[1771578584710,3.04737414,84.2,84.15,3.04737414]
[1771578585410,10.692,84.221,84.164,10.6992]
[1771578585610,3.04737414,84.21,84.164,10.6992]
[1771578585814,3.04737414,84.21,84.165,10.20353591]
[1771578586018,3.04737414,84.22,84.171,10.20353591]
[1771578586219,13.73837414,84.23,84.181,10.20353591]
[1771578586425,3.04737414,84.24,84.181,10.20353591]
[1771578586618,3.04737414,84.24,84.191,10.20353591]
[1771578587720,13.73707414,84.24,84.191,10.20353591]
[1771578587926,3.04737414,84.24,84.191,10.20353591]
[1771578590123,6.7032955,84.243,84.191,10.20353591]
[1771578590322,3.04737414,84.24,84.191,10.20353591]
[1771578590526,6.7032955,84.243,84.191,10.20353591]
[1771578590826,3.04737414,84.24,84.191,10.20353591]
[1771578592328,3.04737414,84.24,84.192,10.6957]
[1771578592520,3.04737414,84.24,84.193,10.20353591]
[1771578593924,36.10949857,84.295,84.197,10.20353591]
[1771578593925,6.96408283,84.253,84.197,10.20353591]
[1771578594126,22.11614786,84.297,84.161,14.54815143]
[1771578594127,3.04737414,84.27,84.22,3.04737414]
[1771578594325,3.04737414,84.27,84.221,10.20353591]
[1771578596030,3.04737414,84.26,84.221,10.20353591]
[1771578596223,3.04737414,84.25,84.221,10.20353591]
[1771578597628,7.07404414,84.259,84.221,10.20353591]
[1771578600132,3.04737414,84.26,84.221,10.20353591]
[1771578600434,3.04737414,84.28,84.228,10.20353591]
[1771578600635,3.04737414,84.28,84.231,10.20353591]
[1771578600834,7.13481249,84.297,84.211,11.92838987]
[1771578600835,3.04737414,84.29,84.241,10.20353591]
[1771578601032,7.13298907,84.308,84.251,10.20353591]
[1771578601231,7.13298907,84.308,84.25,3.04737414]
[1771578601232,3.04737414,84.33,84.28,3.04737414]
[1771578601530,7.16244057,84.339,84.291,10.20353591]
[1771578601732,19.15329656,84.34,84.291,10.20353591]
[1771578601931,3.04737414,84.33,84.291,10.20353591]
[1771578602236,7.18685391,84.339,84.261,10.20353591]
[1771578602436,3.04737414,84.33,84.281,10.20353591]
[1771578603033,3.04737414,84.32,84.281,10.20353591]
[1771578603339,3.04737414,84.32,84.281,5.40353591]
[1771578603636,7.18685391,84.339,84.281,5.40353591]
[1771578603838,3.04737414,84.33,84.281,5.40353591]
[1771578604737,10.6763,84.346,84.259,256.50520428]
[1771578604738,3.04737414,84.38,84.32,3.04737414]
[1771578604931,3.04737414,84.38,84.33,3.04737414]
[1771578605132,10.6687,84.406,84.35,3.04737414]
[1771578605333,3.04737414,84.4,84.351,10.7798219]
[1771578605533,10.96254073,84.407,84.36,3.04737414]
[1771578605735,10.96254073,84.407,84.361,10.7798219]
[1771578605937,10.96254073,84.389,84.331,10.7798219]
[1771578606129,3.03497776,84.38,84.331,10.7798219]
[1771578606329,10.96254073,84.389,84.341,10.7798219]
[1771578606835,2.062864,84.445,84.341,10.7798219]
[1771578606836,10.96254073,84.436,84.341,10.7798219]
[1771578607037,3.03497776,84.43,84.371,10.81055817]
[1771578607236,2.06205726,84.465,84.381,10.81055817]
[1771578607435,2.06205726,84.465,84.416,10.6672]
[1771578607436,12.96122273,84.465,84.416,10.6672]
[1771578607635,3.03497776,84.45,84.411,10.81055817]
[1771578607832,3.03497776,84.43,84.391,10.81055817]
[1771578608037,10.89916547,84.429,84.341,10.81055817]
[1771578608230,10.89916547,84.409,84.341,10.81055817]
[1771578608436,9.02265369,84.39,84.341,10.81055817]
[1771578608740,10.89916547,84.389,84.325,10.81055817]
[1771578609734,9.02265369,84.37,84.325,10.81055817]
[1771578610139,19.92181916,84.37,84.275,10.81055817]
[1771578610440,9.02265369,84.33,84.275,10.81055817]
[1771578610838,9.02265369,84.33,84.257,10.81055817]
[1771578611037,9.02265369,84.31,84.257,10.81055817]
[1771578611840,10.89916547,84.37,84.26,10.81055817]
[1771578612341,9.02265369,84.33,84.26,10.81055817]
[1771578612644,10.89916547,84.329,84.26,10.81055817]
[1771578613038,10.49544087,84.329,84.26,10.81055817]
[1771578614746,9.02265369,84.34,84.263,10.81055817]
[1771578615647,9.02265369,84.36,84.281,10.81055817]
[1771578615847,19.92181916,84.36,84.281,10.81055817]
[1771578616352,10.89916547,84.339,84.261,10.81055817]
[1771578617350,10.89916547,84.358,84.271,10.81055817]
[1771578617948,10.89916547,84.358,84.272,10.6854]
[1771578618253,10.89916547,84.358,84.273,10.81055817]
[1771578618548,9.02265369,84.4,84.273,10.81055817]
[1771578618549,10.89916547,84.339,84.273,10.81055817]
[1771578620845,10.6772,84.338,84.273,10.81055817]
[1771578621047,10.89916547,84.337,84.273,10.81055817]
[1771578622751,10.89916547,84.333,84.273,10.81055817]
[1771578624646,10.89916547,84.319,84.256,10.81055817]
[1771578625252,10.89916547,84.319,84.259,267.31576245]
[1771578625452,10.6798,84.318,84.259,267.31576245]
[1771578625749,10.89916547,84.317,84.259,267.31576245]
[1771578626249,9.02265369,84.35,84.259,267.31576245]
[1771578626250,10.89916547,84.299,84.259,256.50520428]
[1771578626843,10.89916547,84.295,84.259,194.67180428]
[1771578627050,10.89916547,84.295,84.259,30.17417031]
[1771578627249,10.89916547,84.295,84.259,7.031e-05]
[1771578627951,10.89916547,84.295,84.222,10.81055817]
[1771578628450,9.02265369,84.28,84.222,10.81055817]
[1771578628857,9.02265369,84.29,84.222,10.81055817]
[1771578630356,9.02265369,84.29,84.224,10.6915]
[1771578630660,9.02265369,84.31,84.225,34.94239695]
[1771578631158,10.6821,84.3,84.227,34.94420702]
[1771578634467,10.6831,84.292,84.227,34.94420702]
[1771578634657,9.02265369,84.31,84.227,34.94420702]
[1771578634858,9.02265369,84.31,84.231,34.9510502]
[1771578635766,10.6828,84.294,84.231,34.9510502]
[1771578636866,10.6813,84.306,84.236,34.94476794]
[1771578637465,10.6824,84.297,84.236,34.94476794]
[1771578638166,9.02265369,84.32,84.238,34.93908003]
[1771578638563,9.02265369,84.32,84.241,34.93908003]
[1771578639270,10.91543734,84.352,84.252,34.94062039]
[1771578639271,10.6799,84.317,84.252,34.94062039]
[1771578639472,9.02265369,84.33,84.252,34.94062039]
[1771578640671,10.6794,84.321,84.255,34.90237859]
[1771578640872,9.02265369,84.35,84.255,34.90237859]
[1771578641073,9.02265369,84.31,84.255,34.90237859]
[1771578642075,10.6825,84.296,84.255,34.90237859]
[1771578642283,9.02265369,84.31,84.255,34.90237859]
[1771578644380,10.6822,84.299,84.255,34.90237859]
[1771578644679,9.02265369,84.31,84.231,34.93882937]
[1771578644977,9.02265369,84.29,84.231,34.93882937]
[1771578645580,10.6843,84.282,84.231,34.93882937]
[1771578646283,9.02265369,84.29,84.231,34.93882937]
[1771578646284,10.6853,84.275,84.231,34.93882937]
[1771578646783,9.02265369,84.32,84.24,9.02265369]
[1771578646983,166.0195,84.374,84.24,9.02265369]
[1771578646984,10.9890682,84.361,84.241,29.59878838]
[1771578647184,9.02265369,84.33,84.241,29.59878838]
[1771578648781,10.6798,84.318,84.259,29.73618078]
[1771578650287,10.6807,84.311,84.259,29.73618078]
[1771578650883,10.6815,84.304,84.259,29.73618078]
[1771578651485,9.02265369,84.33,84.259,29.73618078]
[1771578651985,10.6805,84.312,84.259,29.73618078]
[1771578653293,10.6816,84.303,84.259,29.73618078]
[1771578654194,10.6826,84.296,84.259,29.73618078]
[1771578655487,10.681,84.308,84.259,29.73618078]
[1771578656386,10.6799,84.317,84.259,29.73618078]
[1771578656987,10.9890682,84.344,84.261,29.8113196]
[1771578657190,9.02265369,84.36,84.281,29.8113196]
[1771578657491,10.6746,84.359,84.301,29.8113196]
[1771578657992,10.9890682,84.391,84.306,29.89510402]
[1771578658187,10.9890682,84.398,84.306,29.89510402]
[1771578658394,20.01172189,84.4,84.306,29.89510402]
[1771578658688,9.02265369,84.4,84.306,29.89510402]
[1771578659193,9.02265369,84.38,84.313,29.89692553]
[1771578659991,10.9890682,84.405,84.313,29.89692553]
[1771578660191,10.6706,84.39,84.324,29.89649402]
[1771578660598,9.02265369,84.4,84.324,29.89649402]
[1771578660890,10.6704,84.392,84.325,29.89649402]
[1771578661088,9.02265369,84.4,84.325,29.89649402]
[1771578661288,10.6711,84.387,84.325,29.89649402]
[1771578662092,10.6723,84.377,84.301,29.92935781]
[1771578662294,10.9890682,84.421,84.301,29.92935781]
[1771578662484,10.9890682,84.421,84.3,9.02265369]
[1771578662485,9.02265369,84.41,84.342,29.92935781]
[1771578663494,9.02265369,84.42,84.342,29.92935781]
[1771578663696,10.667,84.419,84.342,29.92935781]
[1771578663891,10.667,84.419,84.283,201.8269]
[1771578663892,9.02265369,84.38,84.321,29.93181488]
[1771578664195,11.02019013,84.427,84.321,29.93181488]
[1771578664390,9.02265369,84.38,84.321,29.93181488]
[1771578664797,10.6722,84.378,84.321,29.93181488]
[1771578664990,9.02265369,84.38,84.321,29.93181488]
[1771578666189,10.6724,84.376,84.321,29.93181488]
[1771578666394,9.02265369,84.38,84.321,29.93181488]
[1771578666794,10.6721,84.378,84.321,29.93181488]
[1771578667096,9.02265369,84.36,84.281,30.32272366]
[1771578667885,9.04040777,84.37,84.281,30.32272366]
[1771578668290,9.04040777,84.33,84.219,10.83093033]
[1771578668591,9.04040777,84.33,84.25,9.04040777]
[1771578668792,9.04040777,84.33,84.261,10.6869]
[1771578668992,9.04040777,84.35,84.25,9.04040777]
[1771578669788,10.676,84.348,84.27,19.72610777]
[1771578670295,10.676,84.348,84.274,10.6852]
[1771578670596,10.676,84.348,84.275,20.68955271]
[1771578671694,10.676,84.348,84.278,20.69229811]
[1771578672496,9.04040777,84.4,84.311,20.6687087]
[1771578672690,21.3309,84.432,84.311,20.6687087]
[1771578673003,9.04040777,84.41,84.311,20.6687087]
[1771578673302,10.6675,84.415,84.324,20.67132415]
[1771578673496,9.04040777,84.41,84.324,20.67132415]
[1771578674290,9.04040777,84.41,84.326,20.85777704]
[1771578674799,9.04040777,84.39,84.326,20.85777704]
[1771578675296,9.04040777,84.4,84.326,20.85777704]
[1771578675501,9.04040777,84.38,84.326,20.85777704]
[1771578678401,10.672,84.379,84.296,20.81358194]
[1771578678800,9.04040777,84.36,84.296,20.81358194]
[1771578681504,9.04040777,84.34,84.296,20.81358194]
[1771578682103,9.04040777,84.34,84.264,20.92663138]
[1771578682609,9.04040777,84.34,84.269,20.92663138]
[1771578684208,10.6771,84.339,84.269,20.92663138]
[1771578684599,9.04040777,84.32,84.269,20.92663138]
[1771578685004,11.02019013,84.347,84.269,20.92663138]
[1771578685309,9.04040777,84.33,84.269,20.92663138]
[1771578686006,9.04040777,84.31,84.269,20.92663138]
[1771578688909,10.6809,84.309,84.241,20.85449476]
[1771578689108,9.04040777,84.31,84.241,20.85449476]
[1771578689909,9.04040777,84.31,84.236,252.76567481]
[1771578689910,10.6774,84.336,84.261,20.77383549]
[1771578690808,9.04040777,84.35,84.261,20.77383549]
[1771578691204,11.01027244,84.375,84.261,20.77383549]
[1771578691409,9.04040777,84.34,84.261,20.77383549]
[1771578691810,10.6786,84.328,84.262,10.6867]
[1771578692010,21.3423,84.386,84.236,252.76567481]
[1771578692011,9.04040777,84.36,84.281,20.56378528]
[1771578692413,10.6761,84.347,84.281,20.56378528]
[1771578694008,10.6734,84.368,84.302,20.5905058]
[1771578694512,9.04040777,84.38,84.302,20.5905058]
[1771578694711,10.6761,84.347,84.302,20.5905058]
[1771578696317,9.04040777,84.39,84.305,20.57375391]
[1771578696915,10.671,84.387,84.307,20.57375391]
[1771578698618,9.04040777,84.35,84.307,20.57375391]
[1771578703733,9.04040777,84.35,84.281,20.56646872]
[1771578705333,9.04040777,84.35,84.283,20.8187212]
[1771578705727,11.01027244,84.38,84.29,9.04040777]
[1771578705927,9.04040777,84.38,84.291,20.8187212]
[1771578706831,10.6729,84.372,84.299,20.73819828]
[1771578708342,10.6739,84.364,84.299,20.73819828]
[1771578711638,10.6739,84.364,84.302,20.76418012]
[1771578712041,10.6749,84.357,84.302,20.76418012]
[1771578712640,9.04040777,84.35,84.302,20.76418012]
[1771578712845,9.04040777,84.35,84.288,20.73788302]
[1771578713041,9.04040777,84.35,84.261,20.73948982]
[1771578713042,11.01027244,84.349,84.261,20.73948982]
[1771578713242,9.04040777,84.31,84.246,20.73948982]
[1771578713748,10.6812,84.307,84.246,20.73948982]
[1771578713945,9.04040777,84.31,84.246,20.73948982]
[1771578715144,10.6809,84.309,84.246,20.73948982]
[1771578715737,9.04040777,84.31,84.246,20.73948982]
[1771578718244,14.69358685,84.341,84.246,20.73948982]
[1771578718245,9.04040777,84.29,84.246,20.73948982]
[1771578718438,9.04040777,84.3,84.246,20.73948982]
[1771578719543,10.6822,84.299,84.246,20.73948982]
[1771578720246,11.01027244,84.327,84.246,20.73948982]
[1771578720446,9.04040777,84.31,84.246,20.73948982]
[1771578721647,19.72120777,84.31,84.246,20.73948982]
[1771578723041,10.6818,84.302,84.246,20.73948982]
[1771578726253,9.04040777,84.31,84.246,20.73948982]
[1771578726254,10.683,84.292,84.246,20.73948982]
[1771578730351,10.684,84.285,84.246,20.73948982]
[1771578730747,9.05352786,84.31,84.246,20.73948982]
[1771578731862,10.6818,84.302,84.246,20.73948982]
[1771578739666,9.05352786,84.31,84.246,20.73948982]
[1771578739667,10.6829,84.293,84.246,20.73948982]
[1771578740462,10.682,84.301,84.246,20.73948982]
[1771578740663,9.05352786,84.31,84.246,20.73948982]
[1771578741567,10.6827,84.295,84.246,20.73948982]
[1771578745175,10.6817,84.303,84.246,20.73948982]
[1771578746074,10.6826,84.296,84.246,20.73948982]
[1771578746670,10.6815,84.304,84.246,20.73948982]
[1771578746976,9.05352786,84.33,84.246,20.73948982]
[1771578747278,10.6778,84.333,84.27,20.34024324]
[1771578747478,10.6778,84.333,84.281,20.34024324]
[1771578747872,10.6767,84.342,84.281,20.34024324]
[1771578751283,9.05352786,84.37,84.281,20.34024324]
[1771578751284,10.6744,84.361,84.281,20.34024324]
[1771578753385,9.05352786,84.37,84.281,20.34024324]
[1771578753590,9.05352786,84.37,84.283,19.90254192]
[1771578754086,3.03806444,84.35,84.291,19.91947035]
[1771578754980,3.03806444,84.34,84.291,19.91947035]
[1771578757886,3.03806444,84.33,84.291,19.91947035]
[1771578758091,3.03806444,84.32,84.291,19.91947035]
[1771578765900,3.03806444,84.32,84.271,19.58713601]
[1771578767602,3.03806444,84.31,84.271,19.58713601]